[Event "38th Indian Junior Girls-ch 2024"]
[Site "Karnal"]
[Date "2024.09.19"]
[Round "5.8"]
[White "Amulya Guruprasad"]
[Black "Sherali Pattnaik"]
[Result "1/2-1/2"]
[ECO "C96"]
[WhiteElo "1827"]
[BlackElo "1915"]
[Annotator "RC"]
[PlyCount "101"]
[EventDate "2024.09.16"]
[EventType "swiss"]
[EventCountry "IND"]
[SourceTitle "playchess.com"]
[Source "ChessBase"]
[SourceQuality "1"]
[TimeControl "5400+30"]

1. e4 {[%emt 0:00:01]} e5 {[%emt 0:00:06]} 2. Nf3 {[%emt 0:00:03]} Nc6 {[%emt 0:00:03]} 3. Bb5 {[%emt 0:00:05]} Nf6 {[%emt 0:00:06]} 4. O-O {[%emt 0:00:04]} d6 {[%emt 0:01:44]} 5. Re1 {[%emt 0:00:14]} Be7 {[%emt 0:00:05]} 6. h3 {[%emt 0:00:10]} a6 {[%emt 0:00:03]} 7. Ba4 {[%emt 0:00:03]} b5 {[%emt 0:00:03]} 8. Bb3 {[%emt 0:00:04]} O-O {[%emt 0:00:05]} 9. c3 {[%emt 0:00:02]} Nd7 {[%emt 0:02:27]} 10. d4 {[%emt 0:00:22]} Na5 {[%emt 0:01:04]} 11. Bc2 {[%emt 0:00:13]} c5 {[%emt 0:00:04]} 12. d5 {[%emt 0:00:16]} Nb6 {[%emt 0:00:39]} 13. Nbd2 {[%emt 0:02:23]} f5 {[%emt 0:01:39]} 14. exf5 {[%emt 0:00:02]} Bxf5 {[%emt 0:00:05]} 15. Bxf5 {[%emt 0:02:37]} Rxf5 {[%emt 0:01:09]} 16. Ne4 {[%emt 0:00:06]} Qd7 {[%emt 0:06:17]} 17. Re3 {[%emt 0:09:10]} Raf8 {[%emt 0:06:05]} 18. Ng3 {[%emt 0:04:14]} R5f7 {[%emt 0:01:06]} 19. b3 {[%emt 0:11:36]} Nb7 {[%emt 0:08:47]} 20. Ne4 {[%emt 0:04:41]} Nd8 {[%emt 0:03:03]} 21. Nh2 {[%emt 0:03:43]} Rf5 {[%emt 0:07:58]} 22. Nf1 {[%emt 0:09:24]} Bh4 {[%emt 0:11:07]} 23. Re2 {[%emt 0:02:39]} Nf7 {[%emt 0:06:55]} 24. Ne3 {[%emt 0:03:45]} Rf4 {[%emt 0:03:15]} 25. Qc2 {[%emt 0:04:03]} Ng5 {[%emt 0:06:08]} 26. Nxg5 {[%emt 0:05:54]} Bxg5 {[%emt 0:00:02]} 27. c4 {[%emt 0:00:00]} R4f7 {[%emt 0:01:35]} 28. Nf1 {[%emt 0:02:44]} Bxc1 {[%emt 0:00:36]} 29. Rxc1 {[%emt 0:00:02]} Nc8 {[%emt 0:00:03]} 30. Ng3 {[%emt 0:04:12]} Ne7 {[%emt 0:00:08]} 31. Ne4 {[%emt 0:00:05]} h6 {[%emt 0:04:36]} 32. Qb2 {[%emt 0:03:19]} Nf5 {[%emt 0:02:31]} 33. b4 {[%emt 0:02:56]} bxc4 {[%emt 0:02:20]} 34. bxc5 {[%emt 0:02:42]} Nd4 {[%emt 0:00:05]} 35. Re3 {[%emt 0:01:43]} dxc5 {[%emt 0:00:12]} 36. Rxc4 {[%emt 0:00:02]} Qxd5 {[%emt 0:01:00]} 37. Rxc5 {[%emt 0:00:02]} Qe6 {[%emt 0:00:26]} 38. Qa3 {[%emt 0:08:01]} Rf4 {[%emt 0:05:41]} 39. Qa5 {[%emt 0:06:00]} Qg6 {[%emt 0:00:18]} 40. Rxe5 {[%emt 0:04:44]} Nf3+ {[%emt 0:02:21]} 41. Rxf3 {[%emt 0:00:02]} Rxf3 {[%emt 0:00:02]} 42. Qd5+ {[%emt 0:00:01]} Kh8 {[%emt 0:00:14]} 43. Re6 {[%emt 0:00:16]} R3f5 {[%emt 0:02:20]} 44. Qc6 {[%emt 0:07:45]} Qf7 {[%emt 0:00:23]} 45. f3 {[%emt 0:00:01]} Rb5 {[%emt 0:01:27]} 46. Qxa6 {[%emt 0:00:50]} Rb1+ {[%emt 0:00:04]} 47. Kh2 {[%emt 0:00:07]} Qf4+ {[%emt 0:00:42]} 48. Ng3 {[%emt 0:00:19]} Qc1 {[%emt 0:08:44]} 49. Ne2 {[%emt 0:00:03]} Qc7+ {[%emt 0:00:08]} 50. Ng3 {[%emt 0:01:54]} Qc1 {[%emt 0:06:32]} 51. Ne2 {[%emt 0:02:16]} 1/2-1/2

[Event "38th Indian Junior Girls-ch 2024"]
[Site "Karnal"]
[Date "2024.09.19"]
[Round "5.10"]
[White "Vakcheri Mohitha"]
[Black "Wankhade Sanskruti"]
[Result "1/2-1/2"]
[ECO "D10"]
[WhiteElo "1820"]
[BlackElo "1889"]
[Annotator "NA RC"]
[PlyCount "155"]
[EventDate "2024.09.16"]
[EventType "swiss"]
[EventCountry "IND"]
[SourceTitle "playchess.com"]
[Source "ChessBase"]
[SourceQuality "1"]
[TimeControl "5400+30"]

1. d4 {[%emt 0:00:03]} d5 {[%emt 0:00:12]} 2. c4 {[%emt 0:00:07]} c6 {[%emt 0:00:12]} 3. cxd5 {[%emt 0:00:06]} cxd5 {[%emt 0:00:05]} 4. Bf4 {[%emt 0:00:10]} Nf6 {[%emt 0:00:19]} 5. e3 {[%emt 0:00:13]} Nc6 {[%emt 0:00:09]} 6. Nc3 {[%emt 0:00:17]} Bg4 {[%emt 0:02:08]} 7. Qb3 {[%emt 0:21:39]} Na5 {[%emt 0:02:37]} 8. Qa4+ {[%emt 0:00:06]} Bd7 {[%emt 0:00:23]} 9. Qc2 {[%emt 0:00:10]} e6 {[%emt 0:01:12]} 10. Bd3 {[%emt 0:01:39]} Rc8 {[%emt 0:04:14]} 11. Nge2 {[%emt 0:06:17]} h6 {[%emt 0:07:11]} 12. O-O {[%emt 0:09:54]} Nh5 {[%emt 0:05:27]} 13. e4 {[%emt 0:09:25]} ({White should play} 13. Be5 $11) 13... dxe4 {[%emt 0:05:18]} 14. Bxe4 {[%emt 0:00:41]} Nxf4 {[%emt 0:00:31]} 15. Nxf4 {[%emt 0:00:07]} Bd6 {[%emt 0:04:05]} 16. Nfe2 {[%emt 0:06:33]} O-O {[%emt 0:06:16]} 17. Rfd1 {[%emt 0:03:15]} f5 {[%emt 0:07:46]} 18. Bf3 {[%emt 0:03:03]} Qf6 {[%emt 0:05:44]} 19. Qd3 $15 {[%emt 0:36:15]} Nc6 {[%emt 0:04:04]} 20. a3 {[%emt 0:00:00]} Bb8 {[%emt 0:01:13]} 21. Rac1 {[%emt 0:00:00]} Kh8 {[%emt 0:05:06]} 22. g3 {[%emt 0:00:00]} e5 {[%emt 0:01:48]} 23. Bg2 {[%emt 0:00:00]} f4 {[%emt 0:06:00]} 24. Ne4 {[%emt 0:00:00]} Qf7 {[%emt 0:04:20]} 25. d5 {[%emt 0:00:00]} Ne7 {[%emt 0:02:20]} 26. N2c3 {[%emt 0:00:00]} a6 {[%emt 0:04:04]} 27. Kh1 {[%emt 0:00:00]} Nf5 {[%emt 0:03:33]} 28. b4 {[%emt 0:00:00]} Nd4 {[%emt 0:03:29]} 29. gxf4 {[%emt 0:02:07]} Qxf4 {[%emt 0:01:03]} 30. Qg3 {[%emt 0:00:52]} Qf7 {[%emt 0:08:09]} 31. d6 {[%emt 0:01:16]} (31. Bh3 $11) 31... Rce8 {[%emt 0:00:32]} 32. Re1 {[%emt 0:01:34]} Nf5 {[%emt 0:01:35]} ({Black should try} 32... Re6 $19 33. Rcd1 Rg6 (33... Bxd6 $2 34. Nxd6 Rxd6 35. Qxe5 $19)) 33. Qd3 {[%emt 0:00:05]} Bc6 {[%emt 0:00:31]} 34. Rcd1 {[%emt 0:00:57]} Rd8 {[%emt 0:01:16]} 35. b5 {[%emt 0:00:35]} axb5 {[%emt 0:00:52]} 36. Nxb5 {[%emt 0:00:07]} Bxe4 $2 {[%emt 0:00:57]} ({Black should try} 36... Nh4 $19 37. Rd2 Qd7 (37... Nxg2 $2 38. Kxg2 Qd7 39. Nbc3 $19)) 37. Qxe4 {[%emt 0:00:24]} Nxd6 {[%emt 0:00:11]} 38. Nxd6 {[%emt 0:00:04]} Bxd6 {[%emt 0:00:47]} 39. Qxb7 {[%emt 0:00:34]} Qxb7 {[%emt 0:01:14]} (39... Bxa3 $2 {is the wrong capture.} 40. Qxf7 Rxd1 41. Qxf8+ Bxf8 42. Rxd1 $18) 40. Bxb7 {[%emt 0:00:06]} Rxf2 {[%emt 0:00:06]} 41. Rxe5 {[%emt 0:01:18]} (41. Be4 $11 {keeps the balance.}) 41... Rb8 {[%emt 0:00:20]} ({Black should play} 41... Rxh2+ $1 $17 42. Kg1 Rh4) 42. Rxd6 {[%emt 0:00:48]} Rxb7 {[%emt 0:00:04]} 43. Kg1 {[%emt 0:00:14]} Rbb2 {[%emt 0:00:03]} 44. Rh5 {[%emt 0:00:23]} Rfc2 {[%emt 0:00:07]} 45. Rd1 {[%emt 0:00:15]} Ra2 {[%emt 0:00:09]} 46. Rh3 {[%emt 0:00:05]} Kh7 {[%emt 0:00:15]} 47. Kh1 {[%emt 0:00:14]} g5 {[%emt 0:01:18]} 48. Rd7+ {[%emt 0:00:37]} Kg6 {[%emt 0:00:02]} 49. Rd6+ {[%emt 0:00:14]} Kf5 {[%emt 0:00:01]} 50. Rd1 {[%emt 0:00:15]} Rc6 {[%emt 0:00:39]} 51. Rf1+ {[%emt 0:00:49]} Kg6 {[%emt 0:00:11]} 52. Rd1 {[%emt 0:01:07]} g4 {[%emt 0:03:24]} 53. Rg3 {[%emt 0:00:31]} Kg5 {[%emt 0:00:29]} 54. Rdg1 {[%emt 0:01:23]} h5 {[%emt 0:00:21]} 55. R1g2 {[%emt 0:00:23]} Rc1+ {[%emt 0:00:40]} 56. Rg1 {[%emt 0:00:04]} Rcc2 {[%emt 0:00:04]} 57. R1g2 {[%emt 0:00:22]} Rxg2 {[%emt 0:00:06]} 58. Rxg2 {[%emt 0:00:03]} Rxa3 {[%emt 0:00:07]} 59. Rf2 {[%emt 0:00:03]} h4 {[%emt 0:02:22]} 60. Rf8 {[%emt 0:02:04]} Ra1+ {[%emt 0:01:45]} 61. Kg2 {[%emt 0:00:05]} Ra2+ {[%emt 0:00:03]} 62. Kg1 {[%emt 0:00:10]} Ra1+ {[%emt 0:00:24]} 63. Kf2 {[%emt 0:00:42]} h3 {[%emt 0:01:00]} 64. Rg8+ {[%emt 0:00:06]} Kf5 {[%emt 0:00:02]} 65. Rf8+ {[%emt 0:00:08]} Ke6 {[%emt 0:00:04]} 66. Rg8 {[%emt 0:00:06]} Ra2+ {[%emt 0:00:05]} 67. Kg3 {[%emt 0:00:16]} Rg2+ {[%emt 0:00:14]} 68. Kh4 {[%emt 0:00:54]} Kf5 {[%emt 0:00:04]} 69. Rf8+ {[%emt 0:00:04]} Ke4 {[%emt 0:00:05]} 70. Rg8 {[%emt 0:00:28]} Kf3 {[%emt 0:00:18]} 71. Rf8+ {[%emt 0:00:04]} Ke2 {[%emt 0:01:33]} 72. Rg8 {[%emt 0:00:33]} Rxh2 {[%emt 0:00:50]} 73. Rxg4 {[%emt 0:00:05]} Rh1 {[%emt 0:00:04]} 74. Kg3 {[%emt 0:00:34]} h2 {[%emt 0:00:54]} 75. Rh4 {[%emt 0:00:09]} Ke3 {[%emt 0:00:26]} 76. Rxh2 {[%emt 0:00:11]} Rg1+ {[%emt 0:00:02]} 77. Rg2 {[%emt 0:00:12]} Rxg2+ {[%emt 0:00:03]} 78. Kxg2 {[%emt 0:00:06]} 1/2-1/2